bitfinex/quotes_SOLUSD_20240808
["timestamp","ask_amount","ask_price","bid_price","bid_amount"]
[1723089648661,43.49234611,153.67,153.57,6.1476]
[1723089648836,50.00004611,153.67,153.57,6.1476]
[1723089649031,6.5079,153.66,153.57,6.1476]
[1723089649256,43.49234611,153.67,153.57,6.1476]
[1723089649538,6.80234611,153.67,153.57,6.1476]
[1723089649763,6.80234611,153.67,153.58,0.17]
[1723089650226,6.80234611,153.67,153.58,1.20558228]
[1723089650427,36.69,153.62,153.49,19.58]
[1723089650754,36.69,153.64,153.51,6.3009]
[1723089650934,6.5091,153.63,153.52,1.30203633]
[1723089651254,6.5101,153.61,153.52,1.30203633]
[1723089651558,36.69,153.64,153.52,1.30203633]
[1723089651857,6.51,153.61,153.52,1.30203633]
[1723089652055,6.51,153.61,153.51,6.3009]
[1723089652356,6.5096,153.62,153.51,6.3009]
[1723089652729,20.0,153.63,153.52,1.30161391]
[1723089653154,20.0,153.63,153.53,15.3408]
[1723089653653,20.0,153.63,153.54,1.30206142]
[1723089653871,20.0,153.63,153.55,1.6420625]
[1723089654036,36.69,153.64,153.55,1.6420625]
[1723089654730,6.80234611,153.67,153.55,1.6420625]
[1723089657061,6.507,153.68,153.55,1.6420625]
[1723089657266,3.32507407,153.69,153.56,6.2149]
[1723089657559,20.0,153.69,153.57,21.22148248]
[1723089657738,20.0,153.69,153.58,1.30139773]
[1723089657934,20.0,153.69,153.59,0.34]
[1723089658166,36.71,153.69,153.59,0.34]
[1723089659457,6.5074,153.67,153.59,0.34]
[1723089659763,36.71,153.69,153.59,0.34]
[1723089659942,6.5088,153.64,153.59,0.34]
[1723089660256,21.3003169,153.7,153.56,6.2149]
[1723089660257,36.71,153.66,153.56,6.2149]
[1723089660461,6.5109,153.59,153.56,6.2149]
[1723089660965,6.5112,153.58,153.56,6.2149]
[1723089661272,6.5105,153.6,153.56,6.2149]
[1723089661437,6.5109,153.59,153.56,6.2149]
[1723089661762,6.5116,153.57,153.56,6.2149]
[1723089661941,16.2773,153.59,153.53,15.3408]
[1723089662562,6.5117,153.57,153.53,15.3408]
[1723089662767,6.5113,153.58,153.53,15.3408]
[1723089663666,6.5112,153.58,153.53,15.3408]
[1723089663964,6.5117,153.57,153.53,16.64231]
[1723089664184,36.74,153.6,153.54,0.17]
[1723089664374,36.74,153.6,153.54,1.47134047]
[1723089664667,6.5112,153.58,153.54,0.17]
[1723089664847,6.5112,153.58,153.53,16.31182023]
[1723089665042,6.5112,153.58,153.53,16.31105756]
[1723089665459,6.5117,153.57,153.53,16.31105756]
[1723089666037,6.5113,153.58,153.53,1.30025756]
[1723089666341,36.74,153.6,153.39,19.58]
[1723089666342,36.74,153.54,153.39,19.58]
[1723089666553,63.2521,153.57,153.38,29.79640466]
[1723089666737,20.0,153.57,153.38,29.79640466]
[1723089666942,20.0,153.59,153.38,29.79640466]
[1723089667136,36.74,153.54,153.38,9.79690946]
[1723089667339,36.74,153.54,153.39,1.30174079]
[1723089667759,6.5139,153.52,153.39,1.30174079]
[1723089667952,6.5139,153.52,153.4,16.5099]
[1723089668157,6.5139,153.52,153.41,1.30282307]
[1723089668354,6.5134,153.53,153.41,1.30282307]
[1723089668544,6.80597324,153.51,153.41,1.30282307]
[1723089669461,6.80597324,153.51,153.42,6.7136]
[1723089669773,6.80597324,153.51,153.43,1.47277234]
[1723089670072,6.80597324,153.51,153.44,0.17]
[1723089670369,6.80597324,153.51,153.42,6.5436]
[1723089670546,6.80597324,153.51,153.43,1.30283106]
[1723089670943,13.32017324,153.51,153.43,1.30283106]
[1723089671362,13.32017324,153.51,153.42,6.5436]
[1723089671553,6.80597324,153.51,153.43,1.30271055]
[1723089672445,6.80597324,153.51,153.44,0.17]
[1723089673366,6.80597324,153.51,153.44,0.34]
[1723089673963,6.80597324,153.51,153.44,0.17]
[1723089674145,6.80597324,153.51,153.43,0.17]
[1723089674347,6.80597324,153.51,153.43,1.47254073]
[1723089674664,6.80597324,153.51,153.43,0.17]
[1723089675263,6.24996224,153.52,153.43,0.34]
[1723089675647,2.6394263,153.55,153.43,1.64237125]
[1723089675970,16.6515,153.56,153.43,1.64237125]
[1723089676272,20.0,153.55,153.43,1.64237125]
[1723089676473,6.5133,153.54,153.43,0.34]
[1723089676970,6.5133,153.54,153.43,1.64274468]
[1723089677969,6.5135,153.53,153.43,1.64274468]
[1723089678569,6.8053485,153.52,153.43,1.64274468]
[1723089681160,6.8053485,153.52,153.43,57.96274468]
[1723089681576,16.1255,153.67,153.5,36.74]
[1723089681880,1.3003169,153.66,153.49,6.6002]
[1723089682174,6.5124,153.56,153.49,6.6002]
[1723089682376,16.2726,153.64,153.49,6.6002]
[1723089682544,6.5113,153.58,153.5,0.34]
[1723089682748,16.2726,153.64,153.5,0.34]
[1723089683051,17.5729169,153.64,153.5,0.34]
[1723089683247,6.5121,153.56,153.5,0.34]
[1723089683445,16.2749,153.62,153.5,0.46793329]
[1723089683669,1.3003169,153.61,153.49,0.34]
[1723089683968,6.5112,153.58,153.48,16.6439]
[1723089684152,6.5119,153.57,153.49,0.34]
[1723089684354,6.5112,153.58,153.49,1.64249136]
[1723089684569,6.5112,153.58,153.49,1.64223678]
[1723089684776,6.5112,153.58,153.49,0.34]
[1723089685079,16.2729,153.63,153.5,1.302037]
[1723089685375,41.8856855,153.67,153.51,0.34]
[1723089685588,79.9260024,153.67,153.51,1.64186737]
[1723089685878,6.5097,153.62,153.51,1.64186737]
[1723089686687,6.5099,153.61,153.51,1.64186737]
[1723089686887,90.42231111,153.67,153.51,0.34]
[1723089687046,16.2718,153.64,153.51,1.30234295]
[1723089687250,6.51,153.61,153.52,0.34]
[1723089687449,6.5107,153.6,153.52,0.34]
[1723089687677,6.5096,153.62,153.52,0.34]
[1723089688189,6.5093,153.63,153.52,0.34]
[1723089688355,6.5093,153.63,153.53,1.3020393]
[1723089688672,6.5095,153.62,153.54,0.34]
[1723089689204,17.5702169,153.66,153.54,0.34]
[1723089689356,6.5112,153.58,153.54,0.34]
[1723089689679,6.5112,153.58,153.51,6.6321]
[1723089690506,6.5117,153.57,153.51,6.6321]
[1723089690707,1.3003169,153.62,153.51,6.6321]
[1723089690995,6.5138,153.52,153.48,16.4739]
[1723089691381,36.74,153.58,153.48,16.4739]
[1723089691587,20.0,153.57,153.48,16.4739]
[1723089691788,6.5129,153.54,153.48,16.4739]
[1723089692796,2.63987666,153.59,153.48,16.4739]
[1723089693000,10.34301648,153.6,153.48,16.4739]
[1723089693315,6.5112,153.58,153.48,16.4739]
[1723089693479,6.5139,153.52,153.45,6.081]
[1723089693685,6.5134,153.53,153.45,6.081]
[1723089694095,6.5127,153.55,153.45,6.081]
[1723089694691,6.5131,153.54,153.45,6.081]
[1723089695009,16.2785,153.58,153.45,6.081]
[1723089695304,20.0,153.57,153.46,0.17]
[1723089695887,6.5129,153.54,153.46,0.17]
[1723089696512,6.5129,153.54,153.46,0.34]
[1723089696815,6.5129,153.55,153.46,0.73251947]
[1723089697123,6.5129,153.54,153.46,0.73244273]
[1723089697478,6.5125,153.56,153.46,0.73244273]
[1723089698904,6.5112,153.58,153.46,0.73244273]
[1723089699103,26.73471609,153.62,153.46,0.73244273]
[1723089699400,6.5112,153.59,153.46,0.73244273]
[1723089699599,10.46001609,153.62,153.46,0.34]
[1723089699811,6.51,153.61,153.48,56.32]
[1723089700012,6.5105,153.6,153.49,0.34]
[1723089700197,10.46001609,153.62,153.5,6.0881]
[1723089700400,6.51,153.61,153.51,0.17]
[1723089700603,6.51,153.61,153.51,0.34]
[1723089700812,10.46001609,153.62,153.51,0.34]
[1723089701184,6.78831266,153.6,153.51,0.34]
[1723089702080,23.06441266,153.6,153.51,0.34]
[1723089702480,6.5116,153.58,153.51,0.34]
[1723089702698,1.3003169,153.57,153.5,6.0881]
[1723089702888,6.5129,153.55,153.5,6.0881]
[1723089704307,6.5132,153.54,153.43,2.033429]
[1723089704498,43.0365,153.57,153.44,21.9107]
[1723089704499,6.5125,153.55,153.44,21.9107]
[1723089704820,6.5131,153.54,153.44,21.9107]
[1723089704986,6.5124,153.56,153.44,21.9107]
[1723089705186,43.52831266,153.6,153.44,21.9107]
[1723089705396,6.5119,153.57,153.44,21.9107]
[1723089705981,6.5125,153.55,153.45,1.3026638]
[1723089706309,10.36860465,153.59,153.46,0.17]
[1723089706607,10.36860465,153.59,153.46,1.64257906]
[1723089706787,6.78831266,153.6,153.46,1.64257906]
[1723089706986,6.78831266,153.6,153.47,6.2855]
[1723089707207,6.78831266,153.6,153.48,46.64240932]
[1723089707402,6.78831266,153.6,153.49,1.30232446]
[1723089707603,6.78831266,153.6,153.5,0.17]
[1723089707604,6.5111,153.59,153.5,0.17]
[1723089707816,6.5111,153.59,153.5,0.34]
[1723089708481,6.78831266,153.6,153.5,0.34]
[1723089708713,6.78831266,153.6,153.48,46.30218185]
[1723089708714,6.78831266,153.6,153.49,0.34]
[1723089710097,13.29881266,153.6,153.49,0.34]
[1723089710492,13.29881266,153.6,153.48,45.0]
[1723089710493,6.78831266,153.6,153.47,6.2855]
[1723089710702,6.5108,153.59,153.47,6.2855]
[1723089710915,6.5108,153.59,153.47,25.8655]
[1723089711102,6.5108,153.59,153.48,1.05515741]
[1723089711310,6.78661231,153.58,153.49,1.05521564]
[1723089711511,6.78661231,153.58,153.47,6.2855]
[1723089711717,10.3580726,153.65,153.48,16.174]
[1723089712017,6.5108,153.59,153.48,16.174]
[1723089712607,6.5112,153.58,153.48,16.174]
[1723089712913,6.5108,153.59,153.49,45.17]
[1723089713213,17.5728169,153.64,153.49,45.34]
[1723089713410,20.0,153.63,153.49,45.34]
[1723089713616,6.5099,153.62,153.49,45.34]
[1723089713913,6.51,153.61,153.5,0.38366786]
[1723089714118,26.5094,153.63,153.51,0.34]
[1723089714429,6.5094,153.63,153.51,0.34]
[1723089714606,63.3690726,153.65,153.51,0.34]
[1723089714989,10.3580726,153.65,153.51,0.34]
[1723089715195,10.3580726,153.65,153.5,0.72357076]
[1723089715413,6.5099,153.61,153.5,0.72357076]
[1723089716115,10.3580726,153.65,153.5,0.72357076]
[1723089716497,10.3580726,153.65,153.51,6.0983]
[1723089716693,2.65667175,153.66,153.52,0.34]
[1723089716931,20.0,153.66,153.52,0.34]
[1723089717605,6.5091,153.63,153.52,0.34]
[1723089717804,6.5091,153.63,153.52,28.9]
[1723089718214,9.45943492,153.67,153.54,28.56]
[1723089718509,1.3003169,153.66,153.55,0.34]
[1723089719505,28.56,153.65,153.55,0.34]
[1723089719711,1.3003169,153.64,153.55,0.34]
[1723089719900,6.5093,153.63,153.55,0.34]
[1723089720298,28.56,153.65,153.55,0.34]
[1723089720599,6.511,153.59,153.53,16.0105]
[1723089720803,6.51,153.61,153.53,16.0105]
[1723089721006,6.5096,153.62,153.53,16.0105]
[1723089721208,28.56,153.59,153.51,6.0983]
[1723089721417,28.56,153.57,153.51,6.0983]
[1723089721914,28.56,153.59,153.51,6.0983]
[1723089722420,28.56,153.61,153.51,6.0983]
[1723089722720,28.56,153.61,153.52,0.34]
[1723089723024,6.79106555,153.6,153.52,0.34]
[1723089723618,13.30156555,153.6,153.52,0.34]
[1723089724527,6.5113,153.58,153.52,0.34]
[1723089724692,6.79106555,153.6,153.52,0.34]
[1723089725119,13.30156555,153.6,153.52,0.34]
[1723089725723,6.79106555,153.6,153.52,0.34]
[1723089725914,6.512,153.57,153.51,6.0983]
[1723089726102,35.35106555,153.6,153.51,6.0983]
[1723089726506,6.79106555,153.6,153.51,6.0983]
[1723089727340,6.5143,153.51,153.48,16.4359]
[1723089727508,6.5143,153.51,153.45,6.1518]
[1723089727509,28.56,153.54,153.45,6.1518]
[1723089727833,28.56,153.56,153.45,6.1518]
[1723089728047,6.5134,153.53,153.45,6.1518]
[1723089728619,28.56,153.54,153.45,6.1518]
[1723089729516,28.56,153.52,153.45,6.1518]
[1723089729724,6.5149,153.5,153.45,6.1518]
[1723089730047,35.0741,153.52,153.45,6.1518]
[1723089730618,6.5141,153.52,153.45,6.1518]
[1723089731039,6.5142,153.51,153.45,6.1518]
[1723089731234,6.5142,153.51,153.46,0.34]
[1723089731435,6.5142,153.51,153.45,6.1518]
[1723089731767,6.5146,153.5,153.45,6.1518]
[1723089731958,28.56,153.52,153.45,6.1518]
[1723089732334,6.5148,153.5,153.45,6.1518]
[1723089732646,6.5142,153.51,153.45,6.1518]
[1723089733337,6.79204031,153.5,153.45,34.7118]
[1723089733851,6.79204031,153.5,153.46,0.34]
[1723089734046,2.68068803,153.51,153.46,0.34]
[1723089734351,6.5117,153.57,153.46,0.34]
[1723089735253,6.5117,153.57,153.47,1.00120411]
[1723089735452,10.38706081,153.59,153.49,28.56]
[1723089735623,10.38706081,153.59,153.52,6.3236]
[1723089735828,13.06643102,153.59,153.53,0.17]
[1723089736154,13.06643102,153.59,153.52,6.3236]
[1723089736351,13.06643102,153.59,153.53,0.34]
[1723089736530,13.06643102,153.59,153.52,6.3236]
[1723089736731,13.06643102,153.59,153.53,0.17]
[1723089737546,13.06643102,153.59,153.53,0.34]
[1723089737547,6.5113,153.58,153.53,0.34]
[1723089737723,13.06643102,153.59,153.53,0.17]
[1723089737931,19.57743102,153.59,153.53,0.17]
[1723089738138,19.57743102,153.59,153.53,0.34]
[1723089738349,13.06643102,153.59,153.53,0.34]
[1723089738539,19.57733102,153.59,153.53,0.34]
[1723089739053,6.5113,153.58,153.53,0.34]
[1723089739229,19.57723102,153.59,153.53,0.34]
[1723089739427,28.56,153.55,153.46,16.2066]
[1723089739639,28.56,153.51,153.46,16.2066]
[1723089739852,6.5153,153.49,153.46,16.2066]
[1723089740052,28.56,153.51,153.46,16.2066]
[1723089740228,6.5138,153.52,153.46,16.2066]
[1723089740426,6.0133,153.54,153.46,16.2066]
[1723089740666,28.56,153.54,153.46,16.2066]
[1723089741346,28.56,153.56,153.47,0.34]
[1723089741545,6.5119,153.57,153.47,0.34]
[1723089741752,6.5119,153.57,153.47,28.9]
[1723089742257,2.67443236,153.57,153.47,28.9]
[1723089742456,28.56,153.6,153.47,28.9]
[1723089742660,28.56,153.64,153.51,28.56]
[1723089742829,28.56,153.64,153.52,0.34]
[1723089743030,6.5103,153.61,153.52,0.34]
[1723089743249,6.5103,153.61,153.51,28.56]
[1723089743250,28.56,153.64,153.48,6.0945]
[1723089743446,28.56,153.64,153.5,28.56]
[1723089743646,28.56,153.62,153.51,0.34]
[1723089743849,10.36805582,153.66,153.51,0.34]
[1723089743850,6.51,153.61,153.51,0.34]
[1723089744230,6.5106,153.6,153.51,0.34]
[1723089744432,6.5098,153.62,153.51,0.34]
[1723089744739,47.09805582,153.66,153.5,0.34]
[1723089744930,20.0,153.65,153.51,1.20174584]
[1723089745143,20.0,153.65,153.52,0.34]
[1723089745553,6.5095,153.62,153.52,0.34]
[1723089745863,6.509,153.64,153.54,6.4677]
[1723089746031,6.509,153.64,153.55,0.34]
[1723089746229,6.509,153.64,153.55,1.54143278]
[1723089746459,16.87615582,153.66,153.55,1.54183402]
[1723089746658,10.36805582,153.66,153.55,1.54183402]
[1723089748265,6.5074,153.67,153.55,1.54183402]
[1723089748567,6.5074,153.67,153.56,6.422]
[1723089748739,6.5079,153.66,153.57,1.60703061]
[1723089749055,6.5073,153.68,153.58,1.26694811]
[1723089749241,6.5073,153.68,153.6,15.4303]
[1723089749560,6.5066,153.69,153.62,6.1677]
[1723089749864,6.506,153.71,153.63,1.47116031]
[1723089750048,6.506,153.71,153.64,0.17]
[1723089750261,6.506,153.71,153.65,1.30099094]
[1723089750555,6.506,153.71,153.66,0.34]
[1723089750758,6.5061,153.7,153.66,0.34]
[1723089750971,6.68145865,153.73,153.66,0.17]
[1723089751136,36.73,153.7,153.62,6.1677]
[1723089751461,16.2701,153.66,153.6,15.4303]
[1723089751762,6.5095,153.63,153.6,15.4303]
[1723089751935,6.5095,153.62,153.6,15.4303]
[1723089752136,6.5099,153.61,153.6,15.4303]
[1723089752353,6.5106,153.6,153.58,6.4259]
[1723089752550,6.5121,153.56,153.54,6.402]
[1723089752735,36.73,153.64,153.54,6.402]
[1723089752946,6.5125,153.55,153.54,6.402]
[1723089753665,36.73,153.61,153.54,6.402]
[1723089754163,6.5113,153.58,153.54,6.402]
[1723089755164,6.5099,153.61,153.54,6.402]
[1723089755351,6.5099,153.61,153.55,0.17]
[1723089756067,6.5099,153.61,153.55,0.34]
[1723089756273,6.5094,153.63,153.55,0.34]
[1723089756564,10.30820261,153.66,153.55,0.34]
[1723089757641,6.5087,153.64,153.55,0.34]
[1723089758079,10.30820261,153.66,153.55,0.34]
[1723089758261,6.509,153.64,153.55,0.34]
[1723089758443,10.30820261,153.66,153.55,0.34]
[1723089759669,1.3003169,153.65,153.55,0.34]
[1723089759974,6.5121,153.56,153.54,6.402]
[1723089760866,6.5116,153.58,153.54,6.402]
[1723089761573,6.80119633,153.57,153.54,6.402]
[1723089767075,6.5159,153.48,153.44,6.4966]
[1723089767264,6.5147,153.5,153.44,6.4966]
[1723089768470,6.5134,153.53,153.44,6.4966]
[1723089768784,16.2854,153.52,153.39,6.6474]
[1723089769160,6.5159,153.47,153.39,6.6474]
[1723089769484,36.73,153.53,153.39,6.6474]
[1723089769690,20.0,153.52,153.39,6.6474]
[1723089769986,16.2807,153.56,153.43,17.530129]
[1723089770171,20.0,153.55,153.44,6.3172]
[1723089770366,6.5144,153.51,153.44,6.3172]
[1723089770592,6.5138,153.52,153.44,6.3172]
[1723089770885,6.80119633,153.57,153.44,6.3172]
[1723089771085,6.5126,153.55,153.44,6.3172]
[1723089771489,6.513,153.54,153.45,0.34]
[1723089771861,6.79951031,153.53,153.45,0.34]
[1723089772058,6.79951031,153.53,153.44,5.6572]
[1723089772263,6.5142,153.51,153.45,0.17]
[1723089772473,6.5138,153.52,153.45,0.17]
[1723089772688,6.79951031,153.53,153.45,0.17]
[1723089774480,6.79951031,153.53,153.45,0.34]
[1723089777191,6.79951031,153.53,153.48,56.31]
[1723089777392,6.79951031,153.53,153.49,0.34]
[1723089777688,16.30771852,153.64,153.49,0.34]
[1723089777689,10.27961852,153.64,153.51,52.4301]
[1723089777893,10.27961852,153.64,153.52,0.34]
[1723089778097,6.5121,153.56,153.51,15.7001]
[1723089778265,6.1308,153.6,153.46,21.8717]
[1723089778471,36.73,153.58,153.46,21.8717]
[1723089778783,6.5128,153.55,153.46,21.8717]
[1723089779398,1.3003169,153.54,153.46,6.1716]
[1723089779575,1.3003169,153.54,153.43,2.033429]
[1723089780095,6.5145,153.51,153.43,2.033429]
[1723089780276,6.5158,153.48,153.43,2.033429]
[1723089780487,6.4322,153.5,153.43,2.033429]
[1723089780693,6.5146,153.51,153.43,2.033429]
[1723089781392,6.5146,153.5,153.43,2.033429]
[1723089781596,6.514,153.52,153.43,2.033429]
[1723089781894,6.5151,153.49,153.43,2.033429]
[1723089782271,6.5146,153.5,153.43,2.033429]
[1723089782471,15.2639,153.53,153.43,2.033429]
[1723089782472,6.514,153.52,153.43,2.033429]
[1723089782671,6.4322,153.54,153.43,2.033429]
[1723089782892,6.5134,153.53,153.44,0.44177154]
[1723089783091,6.5134,153.53,153.43,8.529629]
[1723089783092,6.5138,153.52,153.43,8.529629]
[1723089783293,6.5142,153.51,153.43,9.83278362]
[1723089783879,6.5142,153.51,153.43,8.529629]
[1723089784382,38.88767662,153.57,153.43,8.529629]
[1723089784904,16.2827,153.54,153.43,2.033429]
[1723089785104,6.516,153.47,153.43,2.033429]
[1723089786204,6.5156,153.48,153.43,2.033429]
[1723089786378,16.83647031,153.5,153.43,2.033429]
[1723089786815,6.5152,153.49,153.43,2.033429]
[1723089787101,10.32157031,153.5,153.43,2.033429]
[1723089787298,6.5155,153.48,153.43,2.033429]
[1723089787805,6.5163,153.47,153.43,2.033429]
[1723089787998,10.32157031,153.5,153.43,2.033429]
[1723089788506,6.80078034,153.49,153.43,2.033429]
[1723089788719,6.5155,153.48,153.43,2.033429]
[1723089789584,6.80078034,153.49,153.43,2.033429]
[1723089790109,13.31608034,153.49,153.43,2.033429]
[1723089790410,6.5158,153.48,153.43,2.033429]
[1723089790594,6.80078034,153.49,153.43,2.033429]
[1723089791112,6.80078034,153.49,153.43,3.33613924]
[1723089791290,6.80078034,153.49,153.44,0.17]
[1723089791487,6.80078034,153.49,153.44,0.34]
[1723089791893,6.80078034,153.49,153.44,15.8619]
[1723089793693,10.32157031,153.5,153.45,7.59291257]
[1723089793887,10.32157031,153.5,153.46,1.64242769]
[1723089794093,6.5118,153.57,153.46,1.64242769]
[1723089794301,6.5121,153.56,153.46,0.34]
[1723089794499,13.16623353,153.59,153.46,0.34]
[1723089794893,10.5036818,153.59,153.46,0.34]
[1723089795094,17.0145818,153.59,153.46,0.34]
[1723089795811,10.5036818,153.59,153.46,37.07]
[1723089796531,6.5117,153.57,153.45,6.2904]
[1723089797310,6.5112,153.58,153.45,6.2904]
[1723089797616,6.5118,153.57,153.45,6.2904]
[1723089797816,6.5118,153.57,153.46,0.34]
[1723089798002,6.5112,153.58,153.46,0.34]
[1723089798625,10.5036818,153.59,153.46,0.34]
[1723089798796,10.5036818,153.59,153.47,56.31]
[1723089798991,10.5036818,153.59,153.48,0.34]
[1723089800222,6.51,153.61,153.48,0.34]
[1723089801636,2.5936711,153.64,153.48,0.34]
[1723089801637,10.46047784,153.66,153.49,6.101]
[1723089801831,10.46047784,153.66,153.48,0.34]
[1723089801832,10.46047784,153.66,153.5,71.9224]
[1723089801995,10.46047784,153.66,153.53,77.6834]
[1723089802199,10.46047784,153.66,153.56,19.58]
[1723089802523,11.97279741,153.75,153.57,1.64129903]
[1723089802704,10.98858974,153.74,153.58,1.30142012]
[1723089802898,10.98858974,153.74,153.59,0.34]
[1723089803123,6.5058,153.71,153.6,1.30125066]
[1723089803320,6.5058,153.71,153.59,0.34]
[1723089803321,6.79050238,153.73,153.62,22.6049]
[1723089803538,6.79050238,153.73,153.63,1.64123643]
[1723089803749,15.776,153.77,153.63,1.64123643]
[1723089803750,6.5032,153.77,153.63,1.64123643]
[1723089804041,6.78859352,153.75,153.63,1.64123643]
[1723089804641,6.78859352,153.75,153.63,0.34]
[1723089805538,1.3003169,153.74,153.63,0.34]
[1723089805747,43.51859352,153.75,153.63,0.34]
[1723089806040,52.9863,153.79,153.63,0.34]
[1723089806343,6.79220986,153.74,153.63,0.34]
[1723089806547,1.3003169,153.77,153.63,0.34]
[1723089806720,6.79265601,153.74,153.63,0.34]
[1723089807045,1.3003169,153.76,153.63,0.34]
[1723089807548,6.79338179,153.74,153.63,0.34]
[1723089807921,20.0,153.78,153.63,0.34]
[1723089808244,13.29706966,153.75,153.63,0.34]
[1723089808541,6.5044,153.75,153.63,0.34]
[1723089808742,13.29596883,153.77,153.63,1.50618493]
[1723089808936,6.79246883,153.77,153.63,1.50618493]
[1723089809524,1.3003169,153.76,153.63,0.34]
[1723089809724,13.29606883,153.77,153.63,0.34]
[1723089809943,1.3003169,153.76,153.63,0.34]
[1723089810342,7.8043169,153.76,153.63,0.34]
[1723089810646,6.504,153.76,153.63,0.34]
[1723089811154,6.79246883,153.77,153.63,0.17]
[1723089811321,20.0,153.76,153.63,0.17]
[1723089811519,6.5045,153.74,153.63,0.17]
[1723089812435,26.504,153.76,153.63,0.34]
[1723089812831,15.9806504,153.77,153.64,1.16575646]
[1723089813026,15.9806504,153.77,153.63,0.34]
[1723089813027,6.79246883,153.77,153.65,1.16568058]
[1723089813229,6.79246883,153.77,153.62,22.6049]
[1723089813230,58.0303169,153.76,153.62,22.6049]
[1723089813445,36.73,153.73,153.62,22.6049]
[1723089813623,6.5079,153.66,153.62,6.1439]
[1723089813830,6.5075,153.67,153.62,6.1439]
[1723089814227,1.3003169,153.66,153.62,6.1439]
[1723089814430,6.5075,153.67,153.62,6.1439]
[1723089815154,7.8081169,153.66,153.58,22.4936]
[1723089815328,6.5074,153.68,153.58,22.4936]
[1723089815928,7.8069169,153.69,153.58,22.4936]
[1723089816232,6.5066,153.69,153.58,22.4936]
[1723089816937,6.5061,153.7,153.59,0.34]
[1723089817337,10.27619954,153.71,153.59,0.34]
[1723089818548,1.3003169,153.7,153.58,22.4936]
[1723089819049,10.27619954,153.71,153.58,22.4936]
[1723089819257,20.0,153.7,153.58,22.4936]
[1723089819632,6.5066,153.69,153.58,22.4936]
[1723089819833,6.5066,153.69,153.59,0.34]
[1723089820039,6.5061,153.7,153.59,0.34]
[1723089820339,10.27619954,153.71,153.6,1.30116705]
[1723089820545,10.27619954,153.71,153.61,0.34]
[1723089820852,10.27619954,153.71,153.62,59.82869764]
[1723089821058,10.3325371,153.79,153.63,0.34]
[1723089821258,11.632854,153.79,153.65,36.73]
[1723089821556,11.632854,153.79,153.66,0.17]
[1723089821751,11.632854,153.79,153.66,0.34]
[1723089821934,6.5032,153.77,153.66,0.34]
[1723089822257,6.5032,153.77,153.66,1.57839466]
[1723089822640,10.3325371,153.79,153.68,36.73]
[1723089822837,6.5015,153.82,153.68,36.73]
[1723089822838,6.5015,153.82,153.71,36.73]
[1723089823143,0.8459176,153.85,153.72,0.34]
[1723089823334,0.8459176,153.85,153.75,6.2494]
[1723089823530,0.8459176,153.85,153.77,15.661]
[1723089823842,0.8459176,153.85,153.78,0.34]
[1723089825350,0.8459176,153.85,153.79,1.29978483]
[1723089825538,0.8459176,153.85,153.8,0.34]
[1723089825866,2.1462345,153.85,153.78,0.17]
[1723089826034,7.3457176,153.85,153.78,0.34]
[1723089826352,0.8459176,153.85,153.78,0.34]
[1723089826566,0.8459176,153.85,153.75,6.2494]
[1723089826727,16.2534,153.82,153.75,6.2494]
[1723089826930,1.3003169,153.81,153.72,15.042]
[1723089827158,20.0,153.81,153.72,15.042]
[1723089827337,6.5019,153.81,153.72,15.042]
[1723089827538,6.502,153.8,153.72,15.042]
[1723089827737,1.3003169,153.8,153.72,15.042]